[Event "44th Chess Olympiad Open 2022"]
[Site "Chennai"]
[Date "2022.08.07"]
[Round "9.79"]
[White "Dlamini Simphiwe"]
[Black "Ndiaye, Amadou"]
[Result "1-0"]
[WhiteElo "1569"]
[BlackElo "1968"]
[Annotator "NA RC"]
[PlyCount "101"]
[EventDate "2022.??.??"]
[TimeControl "60"]

1. e4 {[%emt 0:00:12]} c5 {[%emt 0:00:14]} 2. Nf3 {[%emt 0:00:04]} g6 {[%emt 0:
00:00]} 3. d4 {[%emt 0:00:06]} cxd4 {[%emt 0:00:08]} 4. Nxd4 {[%emt 0:00:06]}
Bg7 {[%emt 0:00:03]} 5. Be3 {[%emt 0:00:11]} Nc6 {[%emt 0:00:07]} 6. Nc3 {
[%emt 0:01:04]} a6 {[%emt 0:00:19]} 7. Qd2 {[%emt 0:00:39]} d6 {[%emt 0:01:18]}
8. Bc4 {[%emt 0:02:42]} Ne5 {[%emt 0:01:02]} 9. Be2 {[%emt 0:02:56]} Bd7 {
[%emt 0:01:01]} 10. h3 {[%emt 0:01:17]} b5 {[%emt 0:00:31]} 11. b3 {[%emt 0:00:
00]} Rc8 {[%emt 0:00:12]} 12. Rc1 {[%emt 0:05:19]} e6 {[%emt 0:02:40]} 13. O-O
{[%emt 0:00:34]} Qc7 {[%emt 0:01:34]} 14. Ncxb5 {[%emt 0:22:33]} axb5 {[%emt 0:
00:00]} 15. f4 {[%emt 0:02:01]} Nf6 {[%emt 0:02:19]} 16. fxe5 {[%emt 0:07:06]}
Nxe4 {[%emt 0:00:46]} 17. Nxb5 {[%emt 0:09:57]} Nxd2 {[%emt 0:02:52]} 18. Nxc7+
{[%emt 0:00:28]} Rxc7 {[%emt 0:00:01]} 19. Bxd2 {[%emt 0:00:34]} Bxe5 {[%emt 0:
00:00]} 20. Bf4 {[%emt 0:04:17]} Bd4+ {[%emt 0:00:27]} 21. Kh2 {[%emt 0:00:20]}
e5 {[%emt 0:00:02]} 22. Bd2 {[%emt 0:01:05]} Bb2 {[%emt 0:00:04]} 23. Ba5 {
[%emt 0:10:52]} Rc8 {[%emt 0:04:18]} 24. Rcd1 {[%emt 0:02:17]} Ke7 {[%emt 0:00:
00]} 25. Bb4 {[%emt 0:00:14]} Rc6 {[%emt 0:00:30]} 26. a4 {[%emt 0:04:00]} Bd4
{[%emt 0:01:33]} 27. Bb5 {[%emt 0:06:18]} Rb6 {[%emt 0:01:53]} 28. Rfe1 {
[%emt 0:04:25]} Be6 {[%emt 0:03:18]} 29. c3 {[%emt 0:00:48]} Bf2 {[%emt 0:00:
00]} 30. Rxe5 {[%emt 0:01:12]} Rhb8 {[%emt 0:02:12]} 31. Re2 {[%emt 0:00:37]}
Bh4 {[%emt 0:00:46]} 32. c4 {[%emt 0:00:05]} Kf8 {[%emt 0:02:51]} 33. Bxd6+ {
[%emt 0:00:24]} Rxd6 {[%emt 0:00:00]} 34. Rxd6 {[%emt 0:00:01]} Be7 {[%emt 0:
00:00]} 35. Rdxe6 {[%emt 0:01:04]} fxe6 {[%emt 0:00:06]} 36. Rxe6 {[%emt 0:00:
00]} Kf7 {[%emt 0:00:05]} 37. Re2 {[%emt 0:04:12]} Bb4 {[%emt 0:00:25]} 38. g3
{[%emt 0:01:37]} Rb7 {[%emt 0:00:21]} 39. Bc6 {[%emt 0:00:47]} Rb6 {[%emt 0:00:
00]} 40. Bd5+ {[%emt 0:00:07]} Kf6 {[%emt 0:00:14]} 41. Rc2 {[%emt 0:30:26]}
Bc5 {[%emt 0:30:06]} 42. Rc3 {[%emt 0:01:25]} Bb4 {[%emt 0:00:40]} 43. Rd3 {
[%emt 0:01:08]} Ke5 {[%emt 0:00:52]} 44. Kg2 {[%emt 0:00:31]} Rd6 {[%emt 0:00:
00]} 45. Kf3 {[%emt 0:01:23]} Rf6+ {[%emt 0:00:04]} 46. Ke2 {[%emt 0:01:07]}
Bc5 {[%emt 0:00:22]} 47. Bf3 {[%emt 0:00:36]} Rd6 {[%emt 0:00:05]} 48. a5 {
[%emt 0:00:39]} Rxd3 {[%emt 0:01:30]} 49. Kxd3 {[%emt 0:00:34]} Bb4 {[%emt 0:
00:00]} 50. a6 {[%emt 0:00:18]} Kd6 {[%emt 0:00:08]} 51. Ke4 {[%emt 0:00:17]}
1-0

[Event "44th Chess Olympiad Open 2022"]
[Site "Chennai"]
[Date "2022.08.07"]
[Round "9.80"]
[White "Winston Gerald, Mansfield Thomas"]
[Black "Goorsahye, Antoine"]
[Result "1-0"]
[WhiteElo "1832"]
[BlackElo "1783"]
[Annotator "NA"]
[PlyCount "109"]
[EventDate "2022.??.??"]
[TimeControl "60"]

1. d4 {[%emt 0:00:06]} d5 {[%emt 0:00:28]} 2. c4 {[%emt 0:00:12]} e5 {[%emt 0:
00:00]} 3. dxe5 {[%emt 0:03:10]} d4 {[%emt 0:00:53]} 4. Nf3 {[%emt 0:00:51]}
Nc6 {[%emt 0:00:18]} 5. a3 {[%emt 0:01:49]} Nge7 {[%emt 0:01:38]} 6. e3 {
[%emt 0:01:41]} Bg4 {[%emt 0:01:28]} 7. Be2 {[%emt 0:00:45]} dxe3 {[%emt 0:00:
00]} 8. Qxd8+ {[%emt 0:00:33]} Rxd8 {[%emt 0:00:07]} 9. Bxe3 {[%emt 0:00:18]}
Ng6 {[%emt 0:03:25]} 10. Nbd2 {[%emt 0:02:41]} Be7 {[%emt 0:00:46]} 11. h3 {
[%emt 0:00:58]} Bf5 {[%emt 0:02:28]} 12. O-O {[%emt 0:03:39]} O-O {[%emt 0:00:
00]} 13. Rfd1 {[%emt 0:00:43]} Ngxe5 {[%emt 0:01:21]} 14. Nxe5 {[%emt 0:01:13]}
Nxe5 {[%emt 0:00:08]} 15. Nf3 {[%emt 0:00:21]} Bf6 {[%emt 0:05:23]} 16. Nd4 {
[%emt 0:02:28]} Be4 {[%emt 0:04:12]} 17. f3 {[%emt 0:07:39]} Bg6 {[%emt 0:00:
00]} 18. c5 {[%emt 0:10:11]} c6 {[%emt 0:07:26]} 19. b4 {[%emt 0:02:53]} Rfe8 {
[%emt 0:03:26]} 20. Bf2 {[%emt 0:03:56]} Nd7 {[%emt 0:06:17]} 21. Kf1 {[%emt 0:
00:00]} Re7 {[%emt 0:05:48]} 22. g4 {[%emt 0:14:09]} Rde8 {[%emt 0:06:30]} 23.
Ra2 {[%emt 0:06:23]} Be5 {[%emt 0:04:08]} 24. Bd3 {[%emt 0:05:21]} Nf6 {
[%emt 0:06:11]} 25. Bxg6 {[%emt 0:07:37]} hxg6 {[%emt 0:00:08]} 26. Bh4 {
[%emt 0:03:06]} Rd7 {[%emt 0:01:54]} 27. Bxf6 {[%emt 0:02:37]} Bxf6 {[%emt 0:
00:00]} 28. Rad2 {[%emt 0:00:46]} Red8 {[%emt 0:00:24]} 29. Nb3 {[%emt 0:00:45]
} Rxd2 {[%emt 0:01:03]} 30. Rxd2 {[%emt 0:00:06]} Rxd2 {[%emt 0:00:07]} 31.
Nxd2 {[%emt 0:00:05]} Bb2 {[%emt 0:00:14]} 32. Nc4 {[%emt 0:00:16]} Bf6 {
[%emt 0:01:33]} 33. Ke2 {[%emt 0:00:29]} Kf8 {[%emt 0:00:10]} 34. Kd3 {[%emt 0:
00:00]} Ke7 {[%emt 0:00:16]} 35. Na5 {[%emt 0:00:47]} Ke6 {[%emt 0:00:40]} 36.
Nxb7 {[%emt 0:01:00]} Kd5 {[%emt 0:03:29]} 37. Nd6 {[%emt 0:04:33]} Bb2 {
[%emt 0:01:40]} 38. Nxf7 {[%emt 0:01:45]} Bxa3 {[%emt 0:00:21]} 39. Kc3 {
[%emt 0:00:13]} Bc1 {[%emt 0:00:20]} 40. h4 {[%emt 0:01:20]} Bf4 {[%emt 0:00:
00]} 41. Nh8 {[%emt 0:30:45]} Be5+ {[%emt 0:32:05]} 42. Kd3 {[%emt 0:00:23]} g5
{[%emt 0:01:02]} 43. hxg5 {[%emt 0:00:33]} Ke6 {[%emt 0:01:20]} 44. Ng6 {
[%emt 0:01:08]} Bb2 {[%emt 0:00:21]} 45. Nf4+ {[%emt 0:01:47]} Ke5 {[%emt 0:00:
00]} 46. Ne2 {[%emt 0:00:51]} Kd5 {[%emt 0:01:05]} 47. f4 {[%emt 0:01:06]} Ba3
{[%emt 0:00:38]} 48. Nc3+ {[%emt 0:01:12]} Ke6 {[%emt 0:00:11]} 49. Kc4 {
[%emt 0:00:15]} Bc1 {[%emt 0:00:08]} 50. Ne2 {[%emt 0:00:22]} Bb2 {[%emt 0:00:
00]} 51. f5+ {[%emt 0:00:29]} Ke5 {[%emt 0:00:15]} 52. b5 {[%emt 0:00:17]}
cxb5+ {[%emt 0:00:18]} 53. Kxb5 {[%emt 0:00:00]} Ke4 {[%emt 0:00:00]} 54. c6 {
[%emt 0:00:00]} Be5 {[%emt 0:00:00]} 55. f6 {[%emt 0:00:00]} 1-0

[Event "44th Chess Olympiad Open 2022"]
[Site "Chennai"]
[Date "2022.08.07"]
[Round "9.80"]
[White "Naipal, Hoolan"]
[Black "Kamara, Ansumana"]
[Result "1/2-1/2"]
[WhiteElo "1785"]
[BlackElo "1896"]
[Annotator "NA"]
[PlyCount "109"]
[EventDate "2022.??.??"]
[TimeControl "60"]

1. e4 {[%emt 0:00:14]} e5 {[%emt 0:00:21]} 2. Nf3 {[%emt 0:00:16]} Nc6 {
[%emt 0:00:10]} 3. Bb5 {[%emt 0:00:08]} a6 {[%emt 0:00:17]} 4. Ba4 {[%emt 0:00:
00]} Nf6 {[%emt 0:00:12]} 5. O-O {[%emt 0:01:17]} b5 {[%emt 0:00:07]} 6. Bb3 {
[%emt 0:00:12]} Be7 {[%emt 0:00:12]} 7. Re1 {[%emt 0:00:39]} d6 {[%emt 0:00:15]
} 8. c3 {[%emt 0:00:44]} Bg4 {[%emt 0:00:33]} 9. h3 {[%emt 0:00:55]} Bh5 {
[%emt 0:00:15]} 10. d3 {[%emt 0:01:00]} O-O {[%emt 0:00:16]} 11. a4 {[%emt 0:
00:00]} Na5 {[%emt 0:01:26]} 12. Bc2 {[%emt 0:02:26]} c5 {[%emt 0:00:24]} 13.
Nbd2 {[%emt 0:01:32]} Nc6 {[%emt 0:01:36]} 14. axb5 {[%emt 0:00:33]} axb5 {
[%emt 0:00:09]} 15. Rxa8 {[%emt 0:00:11]} Qxa8 {[%emt 0:00:11]} 16. Nf1 {
[%emt 0:00:22]} Qb7 {[%emt 0:00:41]} 17. Ng3 {[%emt 0:07:26]} Bg6 {[%emt 0:00:
00]} 18. Nh4 {[%emt 0:02:31]} h6 {[%emt 0:01:02]} 19. Nhf5 {[%emt 0:08:54]} Re8
{[%emt 0:00:59]} 20. Qf3 {[%emt 0:17:41]} b4 {[%emt 0:03:17]} 21. Nxe7+ {
[%emt 0:03:52]} Qxe7 {[%emt 0:00:18]} 22. Nf5 {[%emt 0:01:26]} Qe6 {[%emt 0:00:
00]} 23. g4 {[%emt 0:09:47]} b3 {[%emt 0:02:13]} 24. Bd1 {[%emt 0:02:25]} Nh7 {
[%emt 0:00:17]} 25. h4 {[%emt 0:01:34]} f6 {[%emt 0:02:36]} 26. Ne3 {[%emt 0:
00:00]} Rb8 {[%emt 0:02:09]} 27. Nc4 {[%emt 0:06:05]} Bf7 {[%emt 0:00:54]} 28.
Qg3 {[%emt 0:04:31]} Qe7 {[%emt 0:01:40]} 29. Ne3 {[%emt 0:04:27]} Be6 {
[%emt 0:00:16]} 30. Nf5 {[%emt 0:00:14]} Bxf5 {[%emt 0:02:35]} 31. gxf5 {
[%emt 0:00:09]} Kh8 {[%emt 0:00:18]} 32. Kh2 {[%emt 0:00:23]} Qf7 {[%emt 0:00:
00]} 33. Rg1 {[%emt 0:00:25]} Rg8 {[%emt 0:00:33]} 34. Be3 {[%emt 0:02:53]} Nf8
{[%emt 0:01:55]} 35. d4 {[%emt 0:02:10]} cxd4 {[%emt 0:02:51]} 36. cxd4 {
[%emt 0:00:14]} exd4 {[%emt 0:00:37]} 37. Bf4 {[%emt 0:00:13]} Na5 {[%emt 0:00:
00]} 38. Bxd6 {[%emt 0:00:50]} Nd7 {[%emt 0:03:26]} 39. Bb4 {[%emt 0:02:55]}
Nc4 {[%emt 0:02:51]} 40. Bxb3 {[%emt 0:01:52]} Rc8 {[%emt 0:04:05]} 41. Rc1 {
[%emt 0:34:25]} Nde5 {[%emt 0:35:09]} 42. f4 {[%emt 0:00:25]} Rb8 {[%emt 0:00:
00]} 43. fxe5 {[%emt 0:01:20]} Rxb4 {[%emt 0:01:09]} 44. e6 {[%emt 0:01:51]}
Qb7 {[%emt 0:03:11]} 45. Rxc4 {[%emt 0:02:31]} Rxb3 {[%emt 0:02:00]} 46. Rc8+ {
[%emt 0:00:19]} Qxc8 {[%emt 0:00:27]} 47. Qxb3 {[%emt 0:00:04]} Qc7+ {[%emt 0:
00:00]} 48. Kh3 {[%emt 0:00:17]} Qc1 {[%emt 0:13:08]} 49. e7 {[%emt 0:00:45]}
Qh1+ {[%emt 0:02:46]} 50. Kg3 {[%emt 0:00:24]} Qe1+ {[%emt 0:01:16]} 51. Kf3 {
[%emt 0:01:23]} Qh1+ {[%emt 0:01:57]} 52. Kg3 {[%emt 0:00:12]} Qe1+ {[%emt 0:
00:00]} 53. Kf3 {[%emt 0:01:01]} Qh1+ {[%emt 0:00:45]} 54. Kg3 {[%emt 0:00:29]}
Qe1+ {[%emt 0:00:26]} 55. Kf3 {[%emt 0:00:24]} 1/2-1/2

[Event "44th Chess Olympiad Open 2022"]
[Site "Chennai"]
[Date "2022.08.07"]
[Round "9.80"]
[White "Adeshole Beckley, Brian"]
[Black "Marie, Patrick"]
[Result "1/2-1/2"]
[WhiteElo "1590"]
[BlackElo "1921"]
[Annotator "NA RC"]
[PlyCount "99"]
[EventDate "2022.??.??"]
[TimeControl "60"]

1. d4 {[%emt 0:00:05]} Nf6 {[%emt 0:00:07]} 2. c4 {[%emt 0:00:11]} g6 {[%emt 0:
00:00]} 3. Nc3 {[%emt 0:00:12]} Bg7 {[%emt 0:00:08]} 4. e4 {[%emt 0:00:06]} d6
{[%emt 0:00:06]} 5. Nf3 {[%emt 0:00:10]} O-O {[%emt 0:00:14]} 6. Be2 {[%emt 0:
00:00]} c5 {[%emt 0:02:07]} 7. d5 {[%emt 0:03:54]} Nbd7 {[%emt 0:03:29]} 8. O-O
{[%emt 0:00:34]} a6 {[%emt 0:02:22]} 9. h3 {[%emt 0:02:33]} Nb6 {[%emt 0:03:34]
} 10. Bf4 {[%emt 0:02:18]} Bd7 {[%emt 0:02:12]} 11. Qd2 {[%emt 0:03:22]} Na4 {
[%emt 0:03:20]} 12. Bd3 {[%emt 0:09:12]} Nxc3 {[%emt 0:01:07]} 13. bxc3 {
[%emt 0:00:08]} b5 {[%emt 0:02:25]} 14. e5 {[%emt 0:05:45]} Ne8 {[%emt 0:06:02]
} 15. Bh6 {[%emt 0:01:09]} bxc4 {[%emt 0:02:11]} 16. Bxg7 {[%emt 0:00:16]} Kxg7
{[%emt 0:01:21]} 17. Bxc4 {[%emt 0:00:11]} Bb5 {[%emt 0:00:34]} 18. Qe2 {
[%emt 0:03:52]} Qa5 {[%emt 0:05:13]} 19. a4 {[%emt 0:02:06]} Bxc4 {[%emt 0:00:
00]} 20. Qxc4 {[%emt 0:00:06]} Rb8 {[%emt 0:01:05]} 21. Rfe1 {[%emt 0:01:41]}
Nc7 {[%emt 0:13:40]} 22. exd6 {[%emt 0:00:43]} exd6 {[%emt 0:00:03]} 23. Re7 {
[%emt 0:01:11]} Rfe8 {[%emt 0:00:12]} 24. Rae1 {[%emt 0:00:15]} Rxe7 {[%emt 0:
00:00]} 25. Rxe7 {[%emt 0:00:02]} Re8 {[%emt 0:00:01]} 26. Rxe8 {[%emt 0:01:17]
} Nxe8 {[%emt 0:00:09]} 27. Qb3 {[%emt 0:07:23]} Nf6 {[%emt 0:02:00]} 28. Nd2 {
[%emt 0:01:42]} c4 {[%emt 0:01:32]} 29. Qxc4 {[%emt 0:03:50]} Qxd5 {[%emt 0:00:
00]} 30. Qxd5 {[%emt 0:00:48]} Nxd5 {[%emt 0:00:02]} 31. Ne4 {[%emt 0:00:11]}
Nb6 {[%emt 0:03:57]} 32. Nxd6 {[%emt 0:01:54]} Nxa4 {[%emt 0:00:30]} 33. c4 {
[%emt 0:00:25]} Nc5 {[%emt 0:00:12]} 34. Kf1 {[%emt 0:02:41]} Kf6 {[%emt 0:00:
00]} 35. Ke2 {[%emt 0:00:36]} Ke6 {[%emt 0:01:12]} 36. Nc8 {[%emt 0:00:20]} a5
{[%emt 0:02:00]} 37. Na7 {[%emt 0:02:03]} a4 {[%emt 0:00:48]} 38. Nb5 {[%emt 0:
00:00]} Ke5 {[%emt 0:03:04]} 39. Ke3 {[%emt 0:00:21]} Ke6 {[%emt 0:02:39]} 40.
Kd4 {[%emt 0:00:34]} Nb3+ {[%emt 0:01:26]} 41. Kc3 {[%emt 0:30:22]} Nc5 {
[%emt 0:33:20]} 42. f3 {[%emt 0:00:20]} Kd7 {[%emt 0:00:26]} 43. Kb4 {[%emt 0:
00:00]} Kc6 {[%emt 0:02:36]} 44. Nc3 {[%emt 0:02:58]} Nd3+ {[%emt 0:04:17]} 45.
Kxa4 {[%emt 0:00:13]} Ne1 {[%emt 0:00:01]} 46. Ne4 {[%emt 0:01:19]} Nxg2 {
[%emt 0:03:41]} 47. Kb4 {[%emt 0:04:52]} Nf4 {[%emt 0:01:02]} 48. Ng5 {[%emt 0:
00:00]} f5 {[%emt 0:01:45]} 49. Nxh7 {[%emt 0:00:59]} Nxh3 {[%emt 0:00:06]} 50.
Nf6 {[%emt 0:16:45]} 1/2-1/2

[Event "44th Chess Olympiad Open 2022"]
[Site "Chennai"]
[Date "2022.08.07"]
[Round "9.81"]
[White "Volpinari, Danilo"]
[Black "Nevska, Gerda"]
[Result "0-1"]
[WhiteElo "1955"]
[BlackElo "1840"]
[Annotator "NA RC"]
[PlyCount "114"]
[EventDate "2022.??.??"]
[TimeControl "60"]

1. d4 {[%emt 0:00:16]} Nf6 {[%emt 0:00:15]} 2. Nc3 {[%emt 0:01:46]} d5 {
[%emt 0:00:41]} 3. Bf4 {[%emt 0:00:35]} Bf5 {[%emt 0:04:48]} 4. e3 {[%emt 0:00:
00]} a6 {[%emt 0:06:19]} 5. f3 {[%emt 0:05:54]} Nc6 {[%emt 0:03:38]} 6. g4 {
[%emt 0:02:42]} Bg6 {[%emt 0:04:07]} 7. h4 {[%emt 0:01:38]} h5 {[%emt 0:08:05]}
8. g5 {[%emt 0:03:14]} Nd7 {[%emt 0:02:22]} 9. Nxd5 {[%emt 0:07:09]} e5 {
[%emt 0:00:14]} 10. Bg3 {[%emt 0:03:55]} Nb4 {[%emt 0:05:34]} 11. Nxb4 {
[%emt 0:04:11]} Bxb4+ {[%emt 0:04:45]} 12. c3 {[%emt 0:00:16]} Bd6 {[%emt 0:00:
00]} 13. Bh3 {[%emt 0:06:55]} f6 {[%emt 0:02:47]} 14. gxf6 {[%emt 0:05:09]}
gxf6 {[%emt 0:01:02]} 15. Ne2 {[%emt 0:01:37]} Qe7 {[%emt 0:02:37]} 16. e4 {
[%emt 0:19:07]} O-O-O {[%emt 0:04:39]} 17. Qb3 {[%emt 0:09:49]} Kb8 {[%emt 0:
00:00]} 18. O-O-O {[%emt 0:00:31]} Bf7 {[%emt 0:03:55]} 19. Qc2 {[%emt 0:00:47]
} Rhg8 {[%emt 0:02:47]} 20. Rhg1 {[%emt 0:02:46]} Nb6 {[%emt 0:00:25]} 21. b3 {
[%emt 0:03:34]} Bg6 {[%emt 0:06:15]} 22. Bf2 {[%emt 0:01:07]} Bf7 {[%emt 0:00:
00]} 23. Be3 {[%emt 0:02:00]} Be6 {[%emt 0:03:09]} 24. Bf1 {[%emt 0:02:14]}
Rxg1 {[%emt 0:02:54]} 25. Bxg1 {[%emt 0:00:51]} Qf7 {[%emt 0:01:57]} 26. d5 {
[%emt 0:02:20]} Bd7 {[%emt 0:05:46]} 27. c4 {[%emt 0:00:23]} Ba3+ {[%emt 0:00:
00]} 28. Kb1 {[%emt 0:00:03]} a5 {[%emt 0:00:26]} 29. c5 {[%emt 0:00:33]} Nc8 {
[%emt 0:04:47]} 30. c6 {[%emt 0:02:22]} Be8 {[%emt 0:00:05]} 31. cxb7 {[%emt 0:
00:00]} Kxb7 {[%emt 0:00:11]} 32. Nc3 {[%emt 0:00:20]} Nd6 {[%emt 0:03:24]} 33.
Qd3 {[%emt 0:01:51]} Ra8 {[%emt 0:00:11]} 34. Rd2 {[%emt 0:03:03]} Bb4 {
[%emt 0:00:59]} 35. Rc2 {[%emt 0:00:45]} f5 {[%emt 0:02:36]} 36. Rc1 {[%emt 0:
00:00]} Bxc3 {[%emt 0:00:51]} 37. Qxc3 {[%emt 0:00:21]} fxe4 {[%emt 0:00:12]}
38. fxe4 {[%emt 0:00:50]} Nxe4 {[%emt 0:00:18]} 39. Qxe5 {[%emt 0:00:50]} Nd2+
{[%emt 0:00:18]} 40. Kb2 {[%emt 0:00:32]} Nxf1 {[%emt 0:00:54]} 41. Qe1 {
[%emt 0:13:37]} Qg7+ {[%emt 0:02:36]} 42. Ka3 {[%emt 0:00:19]} Qxg1 {[%emt 0:
00:00]} 43. d6 {[%emt 0:04:18]} Bc6 {[%emt 0:03:25]} 44. Qe7 {[%emt 0:02:39]}
Qb6 {[%emt 0:03:10]} 45. Rxf1 {[%emt 0:09:17]} Qb4+ {[%emt 0:00:24]} 46. Kb2 {
[%emt 0:00:04]} Qd4+ {[%emt 0:00:39]} 47. Ka3 {[%emt 0:01:18]} Qxd6+ {[%emt 0:
00:00]} 48. Qxd6 {[%emt 0:00:04]} cxd6 {[%emt 0:00:07]} 49. Rf5 {[%emt 0:00:49]
} Be8 {[%emt 0:00:56]} 50. Kb2 {[%emt 0:00:59]} a4 {[%emt 0:00:58]} 51. bxa4 {
[%emt 0:00:32]} Rxa4 {[%emt 0:00:13]} 52. Rf8 {[%emt 0:01:01]} Bd7 {[%emt 0:00:
00]} 53. Rf6 {[%emt 0:01:02]} Kc7 {[%emt 0:01:23]} 54. Rh6 {[%emt 0:00:42]}
Rxh4 {[%emt 0:00:10]} 55. a3 {[%emt 0:00:37]} Rh3 {[%emt 0:00:36]} 56. Rh7 {
[%emt 0:00:33]} Kc6 {[%emt 0:00:24]} 57. Rh8 {[%emt 0:00:25]} Be6 {[%emt 0:00:
00]} 0-1

[Event "44th Chess Olympiad Open 2022"]
[Site "Chennai"]
[Date "2022.08.07"]
[Round "9.81"]
[White "Herrera, Adrian"]
[Black "Morgan, Jamie"]
[Result "1-0"]
[WhiteElo "1563"]
[BlackElo "1753"]
[Annotator "NA"]
[PlyCount "81"]
[EventDate "2022.??.??"]
[TimeControl "60"]

1. e4 {[%emt 0:00:07]} c5 {[%emt 0:00:09]} 2. Nf3 {[%emt 0:00:19]} g6 {[%emt 0:
00:00]} 3. d4 {[%emt 0:01:07]} cxd4 {[%emt 0:00:10]} 4. Qxd4 {[%emt 0:00:19]}
Nf6 {[%emt 0:00:11]} 5. Qa4 {[%emt 0:01:11]} Nc6 {[%emt 0:05:15]} 6. Nc3 {
[%emt 0:01:53]} d6 {[%emt 0:04:12]} 7. e5 {[%emt 0:02:53]} dxe5 {[%emt 0:00:23]
} 8. Nxe5 {[%emt 0:00:13]} Bg7 {[%emt 0:00:46]} 9. Nxc6 {[%emt 0:11:50]} bxc6 {
[%emt 0:02:01]} 10. Qxc6+ {[%emt 0:00:08]} Bd7 {[%emt 0:00:09]} 11. Qa6 {
[%emt 0:00:35]} O-O {[%emt 0:01:13]} 12. Bd3 {[%emt 0:01:01]} Qc7 {[%emt 0:00:
00]} 13. O-O {[%emt 0:00:50]} Rab8 {[%emt 0:11:58]} 14. h3 {[%emt 0:15:54]}
Rfc8 {[%emt 0:05:20]} 15. Rb1 {[%emt 0:08:23]} Ng4 {[%emt 0:11:28]} 16. hxg4 {
[%emt 0:04:00]} Bxc3 {[%emt 0:00:59]} 17. Qa3 {[%emt 0:02:53]} Bb4 {[%emt 0:00:
00]} 18. Qb3 {[%emt 0:01:23]} Be6 {[%emt 0:01:39]} 19. Qa4 {[%emt 0:00:20]} Bd7
{[%emt 0:00:31]} 20. Qb3 {[%emt 0:00:10]} Be6 {[%emt 0:00:05]} 21. Qa4 {
[%emt 0:00:14]} Bc3 {[%emt 0:01:39]} 22. Bf4 {[%emt 0:01:30]} Be5 {[%emt 0:00:
00]} 23. Bxe5 {[%emt 0:00:22]} Qxe5 {[%emt 0:00:06]} 24. Rfe1 {[%emt 0:05:14]}
Qc5 {[%emt 0:02:54]} 25. a3 {[%emt 0:00:45]} Ba2 {[%emt 0:01:34]} 26. b4 {
[%emt 0:02:03]} Qc3 {[%emt 0:02:43]} 27. Rbc1 {[%emt 0:01:06]} Rc7 {[%emt 0:00:
00]} 28. Red1 {[%emt 0:05:01]} Be6 {[%emt 0:01:52]} 29. Be2 {[%emt 0:00:54]}
Qe5 {[%emt 0:01:23]} 30. Bf3 {[%emt 0:05:56]} Qf4 {[%emt 0:01:49]} 31. Qa5 {
[%emt 0:01:06]} Rc3 {[%emt 0:02:05]} 32. Qxa7 {[%emt 0:02:06]} Rbc8 {[%emt 0:
00:00]} 33. b5 {[%emt 0:03:48]} h5 {[%emt 0:04:09]} 34. gxh5 {[%emt 0:01:34]}
Rxf3 {[%emt 0:01:52]} 35. gxf3 {[%emt 0:01:09]} Bh3 {[%emt 0:01:08]} 36. Qe3 {
[%emt 0:01:42]} Qf5 {[%emt 0:01:13]} 37. c4 {[%emt 0:03:13]} e6 {[%emt 0:01:38]
} 38. b6 {[%emt 0:01:41]} gxh5 {[%emt 0:00:10]} 39. f4 {[%emt 0:00:23]} h4 {
[%emt 0:02:43]} 40. Kh2 {[%emt 0:00:16]} Bg2 {[%emt 0:03:05]} 41. Kxg2 {
[%emt 0:32:11]} 1-0

[Event "44th Chess Olympiad Open 2022"]
[Site "Chennai"]
[Date "2022.08.07"]
[Round "9.82"]
[White "Gontcharov, Serguei"]
[Black "Bridet, Robert"]
[Result "1-0"]
[WhiteElo "1864"]
[BlackElo "1497"]
[Annotator "NA"]
[PlyCount "111"]
[EventDate "2022.??.??"]
[TimeControl "60"]

1. e4 {[%emt 0:00:04]} e5 {[%emt 0:00:22]} 2. Nf3 {[%emt 0:00:07]} Nc6 {
[%emt 0:00:24]} 3. d4 {[%emt 0:00:08]} exd4 {[%emt 0:02:13]} 4. Nxd4 {[%emt 0:
00:00]} Bc5 {[%emt 0:03:57]} 5. Be3 {[%emt 0:00:09]} Nxd4 {[%emt 0:01:22]} 6.
Bxd4 {[%emt 0:00:07]} Bxd4 {[%emt 0:03:34]} 7. Qxd4 {[%emt 0:00:06]} Qf6 {
[%emt 0:03:04]} 8. e5 {[%emt 0:06:54]} Qb6 {[%emt 0:02:15]} 9. Qxb6 {[%emt 0:
00:00]} axb6 {[%emt 0:00:25]} 10. Nc3 {[%emt 0:00:24]} Ne7 {[%emt 0:00:46]} 11.
Nb5 {[%emt 0:02:37]} O-O {[%emt 0:03:08]} 12. Nxc7 {[%emt 0:08:43]} Ra5 {
[%emt 0:00:29]} 13. Nb5 {[%emt 0:00:46]} Ng6 {[%emt 0:00:39]} 14. f3 {[%emt 0:
00:00]} Nxe5 {[%emt 0:00:42]} 15. Nd6 {[%emt 0:02:04]} Rd5 {[%emt 0:02:22]} 16.
Rd1 {[%emt 0:00:21]} Rc5 {[%emt 0:08:37]} 17. c3 {[%emt 0:01:04]} Nc6 {[%emt 0:
00:00]} 18. Kf2 {[%emt 0:04:45]} b5 {[%emt 0:09:13]} 19. Bxb5 {[%emt 0:01:39]}
Na7 {[%emt 0:00:34]} 20. Be2 {[%emt 0:00:57]} b5 {[%emt 0:01:40]} 21. Nxc8 {
[%emt 0:00:58]} Nxc8 {[%emt 0:00:53]} 22. Rxd7 {[%emt 0:00:25]} Nb6 {[%emt 0:
00:00]} 23. Rd2 {[%emt 0:03:14]} g6 {[%emt 0:00:56]} 24. Rhd1 {[%emt 0:00:19]}
Kg7 {[%emt 0:00:36]} 25. Rd8 {[%emt 0:00:21]} Rxd8 {[%emt 0:01:37]} 26. Rxd8 {
[%emt 0:00:04]} Na4 {[%emt 0:03:07]} 27. Rd2 {[%emt 0:01:18]} h5 {[%emt 0:00:
00]} 28. Bd1 {[%emt 0:01:08]} Nb6 {[%emt 0:00:56]} 29. Bb3 {[%emt 0:00:59]} g5
{[%emt 0:08:48]} 30. Rd6 {[%emt 0:04:42]} Nc8 {[%emt 0:05:47]} 31. Rd7 {
[%emt 0:04:58]} Rf5 {[%emt 0:01:37]} 32. Rd5 {[%emt 0:02:09]} Ne7 {[%emt 0:00:
00]} 33. Rxf5 {[%emt 0:00:43]} Nxf5 {[%emt 0:00:13]} 34. Bc2 {[%emt 0:02:16]}
Nd6 {[%emt 0:01:31]} 35. Bd3 {[%emt 0:02:22]} Kf6 {[%emt 0:00:32]} 36. Ke3 {
[%emt 0:01:19]} Ke5 {[%emt 0:00:30]} 37. b3 {[%emt 0:00:34]} f5 {[%emt 0:01:36]
} 38. a4 {[%emt 0:01:46]} bxa4 {[%emt 0:01:27]} 39. bxa4 {[%emt 0:00:07]} Nb7 {
[%emt 0:01:28]} 40. Bb5 {[%emt 0:00:53]} f4+ {[%emt 0:04:42]} 41. Kd3 {[%emt 0:
00:00]} g4 {[%emt 0:34:13]} 42. Bc6 {[%emt 0:01:10]} Na5 {[%emt 0:07:54]} 43.
Be8 {[%emt 0:00:14]} gxf3 {[%emt 0:02:46]} 44. gxf3 {[%emt 0:00:21]} Nb3 {
[%emt 0:00:15]} 45. Kc2 {[%emt 0:10:37]} Nc5 {[%emt 0:00:38]} 46. a5 {[%emt 0:
00:00]} h4 {[%emt 0:00:20]} 47. Bb5 {[%emt 0:00:15]} Kd6 {[%emt 0:01:19]} 48.
a6 {[%emt 0:00:52]} Kc7 {[%emt 0:00:37]} 49. c4 {[%emt 0:01:42]} Kb6 {[%emt 0:
00:00]} 50. Kc3 {[%emt 0:00:00]} Ne6 {[%emt 0:00:00]} 51. Kd3 {[%emt 0:00:00]}
Ng5 {[%emt 0:00:00]} 52. Ke2 {[%emt 0:00:00]} Ne6 {[%emt 0:00:00]} 53. Kf2 {
[%emt 0:00:00]} Nc5 {[%emt 0:00:00]} 54. Kg2 {[%emt 0:00:00]} Ne6 {[%emt 0:00:
00]} 55. Kh3 {[%emt 0:00:00]} Nd4 {[%emt 0:00:00]} 56. Kg4 {[%emt 0:00:00]} 1-0